{"text_format":"1","workbook":"xlsx","n_sheets":2,"sheets":["Учет","Накладная"],"not_rendered":{"charts":0,"images":0,"macros":1,"external_links":0,"defined_names":1,"comments":0,"pivot_tables":0},"unopened":[],"bounds":{"document_bytes":16777216,"sheet_cells":100000,"rows_first":2000,"rows_last":500,"rows_between":2000,"halvings":0,"cell_chars":16384,"cell_head_chars":4096},"cells_cut":0,"cells_raw":0,"read":"whole","date_system":"1900"}

{"sheet":"Учет","index":0,"n_rows":23,"n_cols":9,"rows_kept":23,"cut":false,"hidden":false,"merged":[]}
["i"]
[]
[null,"№пп","Артикул","Наименование Продукции","Размер","ЕдИзм","КаналСбыта","Цена","Кол-во"]
[null,{"$f":"ROW(Учет!$B4)-3","v":1},"A0001","Футболка RS, солнце",null,"шт","Склад РТД",100,2]
[null,{"$f":"ROW(Учет!$B5)-3","v":2},"A0002","Футболка RS, заяц",null,"шт","Склад РТД",110,2]
[null,{"$f":"ROW(Учет!$B6)-3","v":3},"A0003","Футболка RS, зайчиха",null,"шт","Склад РТД",200,1]
[null,{"$f":"ROW(Учет!$B7)-3","v":4},"A0004","Футболка RS, ведро",null,"шт","Склад РТД",130,2]
[null,{"$f":"ROW(Учет!$B8)-3","v":5},"A0005","Майка RS, солнце",null,"шт","Склад РТД",170,1]
[null,{"$f":"ROW(Учет!$B9)-3","v":6},"A0006","Майка RS, зайчиха",null,"шт","Склад РТД",540,1]
[null,{"$f":"ROW(Учет!$B10)-3","v":7},"A0007","Майка RS, заяц",null,"шт","Склад РТД",439.33333333333297,1]
[null,{"$f":"ROW(Учет!$B11)-3","v":8},"A0008","Майка RS, морковка",null,"шт","Склад РТД",505.33333333333297,1]
[null,{"$f":"ROW(Учет!$B12)-3","v":9},"A0009","Шапка RS",null,"шт","Склад РТД",571.33333333333303,1]
[null,{"$f":"ROW(Учет!$B13)-3","v":10},"A0010","Медведь пират",null,"шт","Склад РТД",637.33333333333303,1]
[null,{"$f":"ROW(Учет!$B14)-3","v":11},"A0011","Зайка с корзинкой",null,"шт","Склад РТД",703.33333333333303,1]
[null,{"$f":"ROW(Учет!$B15)-3","v":12},"A0012","Ёжик с яблоком",null,"шт","Склад РТД",769.33333333333303,1]
[null,{"$f":"ROW(Учет!$B16)-3","v":13},"A0013","Ежичка с морковкой ",null,"шт","Склад РТД",835.33333333333303,1]
[null,{"$f":"ROW(Учет!$B17)-3","v":14},"A0014","Котик желтый ",null,"шт","Склад РТД",901.33333333333303,1]
[null,{"$f":"ROW(Учет!$B18)-3","v":15},"A0015","Пандочка",null,"шт","Склад РТД",967.33333333333303,1]
[null,{"$f":"ROW(Учет!$B19)-3","v":16},"A0016","Тигр",null,"шт","Склад РТД",1033.3333333333301,1]
[null,{"$f":"ROW(Учет!$B20)-3","v":17},"A0017","Слон",null,"шт","Склад РТД",1099.3333333333301,1]
[null,{"$f":"ROW(Учет!$B21)-3","v":18},"A0018","Кошки",null,"пара","Склад РТД",1165.3333333333301,1]
[null,{"$f":"ROW(Учет!$B22)-3","v":19},"A0019","Ёжик",null,"шт","Склад РТД",1231.3333333333301,1]
[null,{"$f":"ROW(Учет!$B23)-3","v":20},"A0020","Собаки",null,"пара","Склад РТД",1297.3333333333301,1]

{"sheet":"Накладная","index":1,"n_rows":22,"n_cols":95,"rows_kept":22,"cut":false,"hidden":false,"merged":[[21,59,21,63],[21,64,21,69],[16,94,16,101],[17,94,17,101],[19,94,19,101],[20,94,20,101],[21,94,21,101],[21,49,21,53],[21,84,21,87],[21,88,21,93],[21,54,21,58],[20,59,20,63],[21,70,21,76],[21,77,21,83],[19,59,19,63],[17,49,17,53],[17,54,17,58],[17,59,17,63],[21,3,21,5],[21,6,21,29],[21,30,21,33],[21,34,21,38],[21,39,21,43],[19,3,19,5],[19,6,19,29],[19,30,19,33],[20,3,20,5],[20,6,20,29],[20,30,20,33],[20,34,20,38],[10,94,10,101],[11,94,11,101],[12,94,12,101],[13,94,13,101],[14,94,14,101],[15,94,15,101],[20,64,20,69],[20,70,20,76],[20,77,20,83],[20,84,20,87],[20,88,20,93],[19,84,19,87],[19,64,19,69],[19,70,19,76],[19,77,19,83],[19,88,19,93],[17,64,17,69],[17,70,17,76],[14,88,14,93],[18,77,18,83],[18,84,18,87],[18,88,18,93],[19,34,19,38],[19,39,19,43],[15,88,15,93],[12,77,12,83],[12,84,12,87],[11,84,11,87],[11,88,11,93],[16,88,16,93],[16,44,16,48],[19,44,19,48],[19,49,19,53],[19,54,19,58],[17,3,17,5],[17,6,17,29],[17,30,17,33],[17,34,17,38],[17,39,17,43],[17,44,17,48],[17,77,17,83],[17,84,17,87],[17,88,17,93],[16,77,16,83],[16,84,16,87],[18,3,18,5],[18,6,18,29],[18,30,18,33],[18,34,18,38],[18,39,18,43],[18,44,18,48],[18,49,18,53],[18,54,18,58],[18,59,18,63],[18,64,18,69],[18,70,18,76],[15,3,15,5],[15,6,15,29],[15,30,15,33],[15,34,15,38],[15,39,15,43],[15,44,15,48],[15,49,15,53],[14,77,14,83],[14,84,14,87],[15,64,15,69],[15,70,15,76],[15,54,15,58],[15,59,15,63],[16,64,16,69],[16,70,16,76],[15,77,15,83],[15,84,15,87],[16,49,16,53],[16,54,16,58],[16,59,16,63],[16,3,16,5],[16,6,16,29],[16,30,16,33],[16,34,16,38],[16,39,16,43],[13,77,13,83],[13,84,13,87],[12,88,12,93],[11,70,11,76],[11,77,11,83],[13,88,13,93],[14,3,14,5],[14,6,14,29],[14,30,14,33],[14,34,14,38],[14,39,14,43],[13,70,13,76],[13,54,13,58],[13,59,13,63],[13,44,13,48],[14,64,14,69],[14,70,14,76],[13,49,13,53],[14,44,14,48],[14,49,14,53],[14,54,14,58],[14,59,14,63],[13,64,13,69],[13,3,13,5],[13,6,13,29],[13,30,13,33],[13,34,13,38],[13,39,13,43],[12,3,12,5],[12,6,12,29],[12,30,12,33],[12,34,12,38],[12,39,12,43],[12,49,12,53],[12,64,12,69],[12,70,12,76],[11,49,11,53],[11,54,11,58],[12,54,12,58],[12,59,12,63],[11,59,11,63],[11,64,11,69],[11,3,11,5],[11,6,11,29],[11,30,11,33],[11,34,11,38],[11,39,11,43],[11,44,11,48],[12,44,12,48],[10,59,10,63],[10,64,10,69],[10,70,10,76],[10,77,10,83],[9,88,9,93],[9,94,9,101],[9,54,9,58],[9,59,9,63],[9,64,9,69],[9,70,9,76],[10,39,10,43],[10,44,10,48],[10,49,10,53],[10,54,10,58],[10,84,10,87],[10,88,10,93],[10,3,10,5],[10,6,10,29],[10,30,10,33],[10,34,10,38],[8,94,8,101],[9,3,9,5],[9,6,9,29],[9,30,9,33],[9,34,9,38],[9,39,9,43],[9,44,9,48],[9,49,9,53],[8,59,8,63],[8,64,8,69],[8,70,8,76],[8,77,8,83],[8,39,8,43],[8,44,8,48],[8,49,8,53],[8,54,8,58],[8,3,8,5],[8,6,8,29],[8,30,8,33],[8,34,8,38],[9,77,9,83],[9,84,9,87],[6,84,6,93],[7,84,7,87],[7,88,7,93],[6,3,7,5],[7,54,7,58],[6,49,6,58],[6,59,7,63],[7,39,7,43],[6,34,6,43],[6,44,7,48],[7,49,7,53],[7,6,7,29],[7,30,7,33],[6,6,6,33],[7,34,7,38],[8,84,8,87],[8,88,8,93],[4,74,4,83],[6,64,7,69],[6,70,7,76],[6,77,7,83],[6,94,7,101],[3,64,3,73],[3,74,3,83],[4,64,4,73],[20,39,20,43],[20,44,20,48],[20,49,20,53],[20,54,20,58],[21,44,21,48],[7,1,8,1],[18,94,18,101]]}
[null,"i",null,"ЗАПОЛНЕНИЕ НАКЛАДНОЙ"]
[]
[]
[null,null,null,null,null,null,null,null,null,null,null,null,null,null,null,null,null,null,null,null,null,null,null,null,null,null,null,null,null,null,null,null,null,null,null,null,null,null,null,null,null,null,null,null,null,null,null,null,null,null,null,null,null,null,null,null,null,null,null,null,null,null,null,null,"Номер документа",null,null,null,null,null,null,null,null,null,"Дата составления"]
[null,null,null,null,null,null,null,null,null,null,null,null,null,null,null,null,null,null,null,null,null,null,null,"6а",null,null,null,null,null,null,null,null,null,null,null,null,null,null,null,null,"ТОВАРНАЯ НАКЛАДНАЯ"]
[]
[null,null,null,"Но- мер по по- рядку",null,null,"Товар",null,null,null,null,null,null,null,null,null,null,null,null,null,null,null,null,null,null,null,null,null,null,null,null,null,null,null,"Единица\nизмерения",null,null,null,null,null,null,null,null,null,"Вид упаков- ки",null,null,null,null,"Количество",null,null,null,null,null,null,null,null,null,"Масса брутто",null,null,null,null,"Количест- во\n(масса нетто)",null,null,null,null,null,"Цена,\nруб. коп.",null,null,null,null,null,null,"Сумма без учета НДС, руб. коп.",null,null,null,null,null,null,"НДС",null,null,null,null,null,null,null,null,null,"Сумма с учетом НДС,\nруб. коп."]
[null,"№ пп из закладки УЧЕТ",null,null,null,null,"наименование,\nхарактеристика, сорт, артикул\nтовара",null,null,null,null,null,null,null,null,null,null,null,null,null,null,null,null,null,null,null,null,null,null,null,"код",null,null,null,"наиме- нование",null,null,null,null,"код по ОКЕИ",null,null,null,null,null,null,null,null,null,"в одном месте",null,null,null,null,"мест, штук",null,null,null,null,null,null,null,null,null,null,null,null,null,null,null,null,null,null,null,null,null,null,null,null,null,null,null,null,null,"ставка, %",null,null,null,"сумма,\nруб. коп."]
[null,null,null,1,null,null,2,null,null,null,null,null,null,null,null,null,null,null,null,null,null,null,null,null,null,null,null,null,null,null,3,null,null,null,4,null,null,null,null,5,null,null,null,null,6,null,null,null,null,7,null,null,null,null,8,null,null,null,null,9,null,null,null,null,10,null,null,null,null,null,11,null,null,null,null,null,null,12,null,null,null,null,null,null,13,null,null,null,14,null,null,null,null,null,15]
[null,null,null,{"$f":" IF(B10>0,D9,\"\")","v":""},null,null,{"$f":"IFERROR(CONCATENATE(VLOOKUP(B10,Учет!B:I,2,0),\", \",VLOOKUP(VLOOKUP(B10,Учет!B:I,2,0),Учет!C:I,4,0)),\"\")","v":""},null,null,null,null,null,null,null,null,null,null,null,null,null,null,null,null,null,null,null,null,null,null,null,null,null,null,null,{"$f":"IFERROR(VLOOKUP(B10,Учет!B4:I23,5,0),\"\")","v":""},null,null,null,null,null,null,null,null,null,null,null,null,null,null,null,null,null,null,null,null,null,null,null,null,null,null,null,null,null,{"$f":"IFERROR(VLOOKUP(B10,Учет!B:I,8,0),\"\")","v":""},null,null,null,null,null,{"$f":"IFERROR(VLOOKUP(B10,Учет!B:I,7,0),\"\")","v":""},null,null,null,null,null,null,{"$f":"IFERROR(BM10*BS10,\"\")","v":""},null,null,null,null,null,null,{"$f":"IF(B10>0,0,\"\")","v":""},null,null,null,{"$f":"IF(B10>0,0,\"\")","v":""},null,null,null,null,null,{"$f":"BZ10","v":""}]
[null,null,null,{"$f":" IF(B11>0,D10+1,\"\")","v":""},null,null,{"$f":"IFERROR(CONCATENATE(VLOOKUP(B11,Учет!B:I,2,0),\", \",VLOOKUP(VLOOKUP(B11,Учет!B:I,2,0),Учет!C:I,4,0)),\"\")","v":""},null,null,null,null,null,null,null,null,null,null,null,null,null,null,null,null,null,null,null,null,null,null,null,null,null,null,null,{"$f":"IFERROR(VLOOKUP(B11,Учет!B5:I24,5,0),\"\")","v":""},null,null,null,null,null,null,null,null,null,null,null,null,null,null,null,null,null,null,null,null,null,null,null,null,null,null,null,null,null,{"$f":"IFERROR(VLOOKUP(B11,Учет!B:I,8,0),\"\")","v":""},null,null,null,null,null,{"$f":"IFERROR(VLOOKUP(B11,Учет!B:I,7,0),\"\")","v":""},null,null,null,null,null,null,{"$f":"IFERROR(BS11*BM11,\"\")","v":""},null,null,null,null,null,null,{"$f":"IF(B11>0,0,\"\")","v":""},null,null,null,{"$f":"IF(B11>0,0,\"\")","v":""},null,null,null,null,null,{"$f":"BZ11","v":""}]
[null,null,null,"",null,null,{"$f":"IFERROR(CONCATENATE(VLOOKUP(B12,Учет!B:I,2,0),\", \",VLOOKUP(VLOOKUP(B12,Учет!B:I,2,0),Учет!C:I,4,0)),\"\")","v":""},null,null,null,null,null,null,null,null,null,null,null,null,null,null,null,null,null,null,null,null,null,null,null,null,null,null,null,{"$f":"IFERROR(VLOOKUP(B12,Учет!B6:I25,5,0),\"\")","v":""},null,null,null,null,null,null,null,null,null,null,null,null,null,null,null,null,null,null,null,null,null,null,null,null,null,null,null,null,null,{"$f":"IFERROR(VLOOKUP(B12,Учет!B:I,8,0),\"\")","v":""},null,null,null,null,null,{"$f":"IFERROR(VLOOKUP(B12,Учет!B:I,7,0),\"\")","v":""},null,null,null,null,null,null,"",null,null,null,null,null,null,"",null,null,null,{"$f":"IF(B12>0,0,\"\")","v":""},null,null,null,null,null,{"$f":"BZ12","v":""}]
[null,null,null,"",null,null,{"$f":"IFERROR(CONCATENATE(VLOOKUP(B13,Учет!B:I,2,0),\", \",VLOOKUP(VLOOKUP(B13,Учет!B:I,2,0),Учет!C:I,4,0)),\"\")","v":""},null,null,null,null,null,null,null,null,null,null,null,null,null,null,null,null,null,null,null,null,null,null,null,null,null,null,null,{"$f":"IFERROR(VLOOKUP(B13,Учет!B7:I26,5,0),\"\")","v":""},null,null,null,null,null,null,null,null,null,null,null,null,null,null,null,null,null,null,null,null,null,null,null,null,null,null,null,null,null,{"$f":"IFERROR(VLOOKUP(B13,Учет!B:I,8,0),\"\")","v":""},null,null,null,null,null,{"$f":"IFERROR(VLOOKUP(B13,Учет!B:I,7,0),\"\")","v":""},null,null,null,null,null,null,"",null,null,null,null,null,null,"",null,null,null,"",null,null,null,null,null,""]
[null,null,null,"",null,null,{"$f":"IFERROR(CONCATENATE(VLOOKUP(B14,Учет!B:I,2,0),\", \",VLOOKUP(VLOOKUP(B14,Учет!B:I,2,0),Учет!C:I,4,0)),\"\")","v":""},null,null,null,null,null,null,null,null,null,null,null,null,null,null,null,null,null,null,null,null,null,null,null,null,null,null,null,{"$f":"IFERROR(VLOOKUP(B14,Учет!B8:I27,5,0),\"\")","v":""},null,null,null,null,null,null,null,null,null,null,null,null,null,null,null,null,null,null,null,null,null,null,null,null,null,null,null,null,null,{"$f":"IFERROR(VLOOKUP(B14,Учет!B:I,8,0),\"\")","v":""},null,null,null,null,null,{"$f":"IFERROR(VLOOKUP(B14,Учет!B:I,7,0),\"\")","v":""},null,null,null,null,null,null,"",null,null,null,null,null,null,"",null,null,null,"",null,null,null,null,null,""]
[null,null,null,"",null,null,{"$f":"IFERROR(CONCATENATE(VLOOKUP(B15,Учет!B:I,2,0),\", \",VLOOKUP(VLOOKUP(B15,Учет!B:I,2,0),Учет!C:I,4,0)),\"\")","v":""},null,null,null,null,null,null,null,null,null,null,null,null,null,null,null,null,null,null,null,null,null,null,null,null,null,null,null,{"$f":"IFERROR(VLOOKUP(B15,Учет!B9:I28,5,0),\"\")","v":""},null,null,null,null,null,null,null,null,null,null,null,null,null,null,null,null,null,null,null,null,null,null,null,null,null,null,null,null,null,{"$f":"IFERROR(VLOOKUP(B15,Учет!B:I,8,0),\"\")","v":""},null,null,null,null,null,{"$f":"IFERROR(VLOOKUP(B15,Учет!B:I,7,0),\"\")","v":""},null,null,null,null,null,null,"",null,null,null,null,null,null,"",null,null,null,"",null,null,null,null,null,""]
[null,null,null,"",null,null,{"$f":"IFERROR(CONCATENATE(VLOOKUP(B16,Учет!B:I,2,0),\", \",VLOOKUP(VLOOKUP(B16,Учет!B:I,2,0),Учет!C:I,4,0)),\"\")","v":""},null,null,null,null,null,null,null,null,null,null,null,null,null,null,null,null,null,null,null,null,null,null,null,null,null,null,null,{"$f":"IFERROR(VLOOKUP(B16,Учет!B10:I29,5,0),\"\")","v":""},null,null,null,null,null,null,null,null,null,null,null,null,null,null,null,null,null,null,null,null,null,null,null,null,null,null,null,null,null,{"$f":"IFERROR(VLOOKUP(B16,Учет!B:I,8,0),\"\")","v":""},null,null,null,null,null,{"$f":"IFERROR(VLOOKUP(B16,Учет!B:I,7,0),\"\")","v":""},null,null,null,null,null,null,"",null,null,null,null,null,null,"",null,null,null,"",null,null,null,null,null,""]
[null,null,null,"",null,null,{"$f":"IFERROR(CONCATENATE(VLOOKUP(B17,Учет!B:I,2,0),\", \",VLOOKUP(VLOOKUP(B17,Учет!B:I,2,0),Учет!C:I,4,0)),\"\")","v":""},null,null,null,null,null,null,null,null,null,null,null,null,null,null,null,null,null,null,null,null,null,null,null,null,null,null,null,{"$f":"IFERROR(VLOOKUP(B17,Учет!B11:I30,5,0),\"\")","v":""},null,null,null,null,null,null,null,null,null,null,null,null,null,null,null,null,null,null,null,null,null,null,null,null,null,null,null,null,null,{"$f":"IFERROR(VLOOKUP(B17,Учет!B:I,8,0),\"\")","v":""},null,null,null,null,null,{"$f":"IFERROR(VLOOKUP(B17,Учет!B:I,7,0),\"\")","v":""},null,null,null,null,null,null,"",null,null,null,null,null,null,"",null,null,null,"",null,null,null,null,null,""]
[null,null,null,{"$f":" IF(B18>0,D17+1,\"\")","v":""},null,null,{"$f":"IFERROR(CONCATENATE(VLOOKUP(B18,Учет!B:I,2,0),\", \",VLOOKUP(VLOOKUP(B18,Учет!B:I,2,0),Учет!C:I,4,0)),\"\")","v":""},null,null,null,null,null,null,null,null,null,null,null,null,null,null,null,null,null,null,null,null,null,null,null,null,null,null,null,{"$f":"IFERROR(VLOOKUP(B18,Учет!B12:I31,5,0),\"\")","v":""},null,null,null,null,null,null,null,null,null,null,null,null,null,null,null,null,null,null,null,null,null,null,null,null,null,null,null,null,null,{"$f":"IFERROR(VLOOKUP(B18,Учет!B:I,8,0),\"\")","v":""},null,null,null,null,null,{"$f":"IFERROR(VLOOKUP(B18,Учет!B:I,7,0),\"\")","v":""},null,null,null,null,null,null,"",null,null,null,null,null,null,"",null,null,null,"",null,null,null,null,null,""]
[null,null,null,"",null,null,{"$f":"IFERROR(CONCATENATE(VLOOKUP(B19,Учет!B:I,2,0),\", \",VLOOKUP(VLOOKUP(B19,Учет!B:I,2,0),Учет!C:I,4,0)),\"\")","v":""},null,null,null,null,null,null,null,null,null,null,null,null,null,null,null,null,null,null,null,null,null,null,null,null,null,null,null,{"$f":"IFERROR(VLOOKUP(B19,Учет!B13:I32,5,0),\"\")","v":""},null,null,null,null,null,null,null,null,null,null,null,null,null,null,null,null,null,null,null,null,null,null,null,null,null,null,null,null,null,{"$f":"IFERROR(VLOOKUP(B19,Учет!B:I,8,0),\"\")","v":""},null,null,null,null,null,{"$f":"IFERROR(VLOOKUP(B19,Учет!B:I,7,0),\"\")","v":""},null,null,null,null,null,null,"",null,null,null,null,null,null,{"$f":"IF(B19>0,0,\"\")","v":""},null,null,null,{"$f":"IF(B19>0,0,\"\")","v":""},null,null,null,null,null,{"$f":"BZ19","v":""}]
[null,null,null,"",null,null,{"$f":"IFERROR(CONCATENATE(VLOOKUP(B20,Учет!B:I,2,0),\", \",VLOOKUP(VLOOKUP(B20,Учет!B:I,2,0),Учет!C:I,4,0)),\"\")","v":""},null,null,null,null,null,null,null,null,null,null,null,null,null,null,null,null,null,null,null,null,null,null,null,null,null,null,null,{"$f":"IFERROR(VLOOKUP(B20,Учет!B14:I33,5,0),\"\")","v":""},null,null,null,null,null,null,null,null,null,null,null,null,null,null,null,null,null,null,null,null,null,null,null,null,null,null,null,null,null,{"$f":"IFERROR(VLOOKUP(B20,Учет!B:I,8,0),\"\")","v":""},null,null,null,null,null,{"$f":"IFERROR(VLOOKUP(B20,Учет!B:I,7,0),\"\")","v":""},null,null,null,null,null,null,"",null,null,null,null,null,null,"",null,null,null,"",null,null,null,null,null,""]
[null,null,null,"",null,null,{"$f":"IFERROR(CONCATENATE(VLOOKUP(B21,Учет!B:I,2,0),\", \",VLOOKUP(VLOOKUP(B21,Учет!B:I,2,0),Учет!C:I,4,0)),\"\")","v":""},null,null,null,null,null,null,null,null,null,null,null,null,null,null,null,null,null,null,null,null,null,null,null,null,null,null,null,{"$f":"IFERROR(VLOOKUP(B21,Учет!B15:I34,5,0),\"\")","v":""},null,null,null,null,null,null,null,null,null,null,null,null,null,null,null,null,null,null,null,null,null,null,null,null,null,null,null,null,null,{"$f":"IFERROR(VLOOKUP(B21,Учет!B:I,8,0),\"\")","v":""},null,null,null,null,null,{"$f":"IFERROR(VLOOKUP(B21,Учет!B:I,7,0),\"\")","v":""},null,null,null,null,null,null,"",null,null,null,null,null,null,"",null,null,null,{"$f":"IF(B21>0,0,\"\")","v":""},null,null,null,null,null,{"$f":"BZ21","v":""}]
[null,"##########",null,null,null,null,null,null,null,null,null,null,null,null,null,null,null,null,null,null,null,null,null,null,null,null,null,null,null,null,null,null,null,null,null,null,null,null,null,null,null,null,null,null,null,null,null,null,null,"Итого ",null,null,null,null,null,null,null,null,null,null,null,null,null,null,{"$f":"IFERROR(SUM(BM10:BR21),\"\")","v":0},null,null,null,null,null,"Х",null,null,null,null,null,null,{"$f":"IFERROR(SUM(BZ10:CF21),\"\")","v":0},null,null,null,null,null,null,"Х",null,null,null,{"$f":"IFERROR(SUM(CK10:CP21),\"\")","v":0},null,null,null,null,null,{"$f":"IFERROR(SUM(CQ10:CX21),\"\")","v":0}]